bitfinex/quotes_ETHUSD_20250329
["timestamp","ask_amount","ask_price","bid_price","bid_amount"]
[1743262677102,6.24774441,1840.4,1840.3,5.43389]
[1743262677516,5.29253773,1840.4,1840.3,5.43389]
[1743262677738,5.29253773,1840.4,1840.2,5.43391]
[1743262677739,5.84253773,1840.4,1840.2,5.43391]
[1743262678097,5.84253773,1840.4,1840.2,10.86787]
[1743262678335,6.24199944,1840.4,1840.2,10.86787]
[1743262679148,6.24199944,1840.4,1840.3,5.43389]
[1743262679700,5.69199944,1840.4,1840.3,5.43389]
[1743262680037,5.29253773,1840.4,1840.3,5.43389]
[1743262680424,5.29253773,1840.4,1840.3,7.04869]
[1743262680751,5.29253773,1840.4,1840.3,5.43389]
[1743262681406,3.0,1840.4,1840.3,5.43389]
[1743262682249,3.41404925,1840.4,1840.3,5.43389]
[1743262682717,3.64860622,1840.4,1840.3,5.43389]
[1743262686840,0.23455697,1840.4,1840.3,5.43389]
[1743262687035,0.23455697,1840.4,1840.3,8.05287]
[1743262689342,0.23453759,1840.4,1840.3,8.05287]
[1743262689723,3.40593878,1840.8,1840.7,5.43271]
[1743262690121,3.0,1840.8,1840.7,5.43271]
[1743262690825,4.6656,1840.8,1840.6,5.4329]
[1743262691028,1.6656,1840.6,1840.3,5.43363]
[1743262691220,0.55,1840.2,1840.1,5.43425]
[1743262691425,4.655802,1840.2,1840.1,5.43425]
[1743262691621,2.84253773,1840.2,1840.1,5.43425]
[1743262692015,2.29253773,1840.2,1840.1,5.43425]
[1743262693011,6.13759829,1840.3,1840.2,5.43419]
[1743262693642,3.0,1840.3,1840.2,5.43419]
[1743262694443,3.0,1840.3,1840.2,6.521034]
[1743262695112,3.0,1840.4,1840.3,5.43381]
[1743262695515,3.55,1840.4,1840.2,5.43413]
[1743262696122,3.55,1840.4,1840.3,5.43389]
[1743262696528,3.0,1840.4,1840.3,5.43389]
[1743262696724,6.06,1840.5,1840.4,5.4336]
[1743262696926,0.4092484,1840.8,1840.7,5.43271]
[1743262697228,1.50194995,1840.9,1840.8,5.43242]
[1743262697624,10.31319829,1841.1,1840.9,5.43206]
[1743262697932,3.0,1841.0,1840.8,5.43242]
[1743262698122,5.58759829,1840.9,1840.8,5.43242]
[1743262698442,6.13759829,1840.9,1840.8,5.43242]
[1743262698838,8.90690829,1840.9,1840.7,5.4327]
[1743262699050,6.13759829,1840.9,1840.7,10.86523]
[1743262699253,6.13759829,1840.9,1840.8,5.43242]
[1743262699655,8.90690829,1840.9,1840.8,5.43242]
[1743262700029,6.13759829,1840.9,1840.8,5.43242]
[1743262700923,5.58759829,1840.9,1840.8,5.43242]
[1743262701829,5.99285897,1840.9,1840.8,5.43242]
[1743262702555,5.58759829,1840.9,1840.8,5.43242]
[1743262703253,3.0,1840.9,1840.8,6.518915]
[1743262704358,3.0,1840.9,1840.8,8.052415]
[1743262704842,6.06,1841.1,1841.0,5.43183]
[1743262705163,9.06,1841.1,1841.0,5.43183]
[1743262708244,4.6114,1841.0,1840.7,5.43256]
[1743262708424,6.13759829,1840.8,1840.7,5.43256]
[1743262709144,1.6114,1841.0,1840.7,5.43256]
[1743262709145,3.0,1841.0,1840.9,5.43202]
[1743262710584,6.06,1841.1,1841.0,5.43183]
[1743262710875,3.0,1841.1,1841.0,6.96533]
[1743262711227,31.35059829,1841.4,1841.3,5.43094]
[1743262711427,28.763,1841.4,1841.3,5.43094]
[1743262711653,0.55,1841.5,1841.4,5.43065]
[1743262711975,3.55,1841.5,1841.4,5.43065]
[1743262712345,3.96369139,1841.5,1841.4,5.43065]
[1743262712771,4.13086253,1841.5,1841.4,5.43065]
[1743262712968,6.42190803,1841.5,1841.4,5.43065]
[1743262713469,10.56984803,1841.5,1841.4,5.43065]
[1743262713980,9.12984803,1841.5,1841.4,5.43065]
[1743262714271,6.42190803,1841.5,1841.4,5.43065]
[1743262714794,5.45821664,1841.5,1841.4,5.43065]
[1743262716796,12.63915664,1841.5,1841.4,5.43065]
[1743262717401,5.45821664,1841.5,1841.4,5.43065]
[1743262717596,9.94200164,1841.5,1841.4,5.43065]
[1743262717809,5.45821664,1841.5,1841.4,5.43065]
[1743262718260,12.11530164,1841.5,1841.3,5.43094]
[1743262718462,7.63151664,1841.5,1841.3,5.43094]
[1743262718659,0.55,1841.1,1840.8,6.9379]
[1743262718967,0.55,1841.1,1840.3,6.673752]
[1743262718968,0.55,1841.1,1841.0,5.43183]
[1743262719188,5.8410455,1841.1,1841.0,5.43183]
[1743262719409,5.2910455,1841.1,1841.0,5.43183]
[1743262719564,5.2910455,1841.1,1841.0,6.518201]
[1743262720208,1.6233,1841.3,1841.2,5.43124]
[1743262720209,3.0,1841.3,1841.2,5.43124]
[1743262720374,3.0,1841.3,1841.2,6.93674]
[1743262721000,2.2910455,1841.6,1841.5,5.43035]
[1743262722672,2.2910455,1841.6,1841.5,8.021939]
[1743262722872,2.5833371,1841.8,1841.7,5.42976]
[1743262723082,2.98398073,1841.8,1841.7,5.42976]
[1743262723288,2.5833371,1841.8,1841.7,5.42976]
[1743262723697,3.1333371,1841.8,1841.7,5.42976]
[1743262724073,3.1333371,1841.8,1841.6,5.42995]
[1743262724872,2.5833371,1841.8,1841.7,5.42976]
[1743262725071,0.55,1841.7,1841.6,5.42985]
[1743262725272,2.590522,1841.7,1841.6,5.42985]
[1743262725498,0.55,1841.7,1841.6,5.42985]
[1743262726090,2.99287793,1841.8,1841.7,5.42976]
[1743262726968,0.40954083,1841.8,1841.7,5.42976]
[1743262727168,3.55,1841.9,1841.8,5.42947]
[1743262727707,3.57608614,1841.9,1841.8,5.42947]
[1743262728396,0.15882737,1841.9,1841.8,5.42947]
[1743262728706,28.756,1842.1,1841.9,5.42917]
[1743262728707,3.0,1842.0,1841.9,5.42917]
[1743262729113,5.5833371,1842.0,1841.9,5.42917]
[1743262730514,6.1333371,1842.0,1841.8,5.42947]
[1743262730683,7.358491,1841.9,1841.8,5.42947]
[1743262730880,3.96623788,1841.9,1841.8,5.42947]
[1743262732014,3.0,1841.9,1841.8,5.42947]
[1743262732217,3.0,1841.9,1841.8,6.515392]
[1743262734080,5.98526863,1842.2,1842.1,5.42858]
[1743262734983,3.0,1842.2,1842.1,5.42858]
[1743262736688,3.0,1842.4,1842.3,5.42799]
[1743262736888,3.0,1842.3,1842.1,5.42856]
[1743262737215,2.5833371,1842.2,1842.1,5.42856]
[1743262737414,3.0,1842.1,1842.0,5.42886]
[1743262737605,2.5833371,1842.2,1842.0,10.85753]
[1743262737803,2.5833371,1842.2,1842.1,5.42858]
[1743262742721,3.0,1842.1,1841.3,5.43087]
[1743262742901,3.0,1841.7,1841.6,5.43005]
[1743262743291,3.16339793,1841.7,1841.6,5.43005]
[1743262743821,3.71339793,1841.7,1841.6,5.43005]
[1743262744927,3.00401231,1841.7,1841.6,5.43005]
[1743262745225,2.45401231,1841.7,1841.6,7.04585]
[1743262745397,2.45401231,1841.7,1841.6,8.293469]
[1743262745803,0.16339793,1841.7,1841.6,8.293469]
[1743262746121,2.29061438,1841.9,1841.8,5.42947]
[1743262746328,3.0,1842.0,1841.9,5.42917]
[1743262748095,1.564,1841.9,1841.7,5.42974]
[1743262748289,0.55,1841.8,1841.6,10.85989]
[1743262748495,2.84061438,1841.7,1841.6,10.85989]
[1743262749107,2.84061438,1841.7,1841.6,5.42985]
[1743262750754,0.55,1841.6,1841.3,5.43093]
[1743262750898,2.29061438,1841.4,1841.3,10.86166]
[1743262751208,5.29061438,1841.4,1841.3,5.43073]
[1743262755236,5.84061438,1841.4,1841.2,5.43122]
[1743262755614,5.84061438,1841.4,1841.1,5.4315]
[1743262755814,2.29061438,1841.2,1841.1,5.4315]
[1743262756019,2.29061438,1841.2,1841.1,6.6264481]
[1743262756743,2.84061438,1841.2,1841.0,5.43161]
[1743262757238,0.55,1841.1,1841.0,5.43161]
[1743262757447,5.43161,1841.0,1840.7,5.43266]
[1743262757629,2.29061438,1840.8,1840.7,5.43266]
[1743262757942,5.98346787,1840.8,1840.7,5.43266]
[1743262760546,5.98346787,1840.8,1840.6,10.86561]
[1743262760846,5.98346787,1840.8,1840.6,5.4328]
[1743262761054,5.98346787,1840.8,1840.7,5.43271]
[1743262761341,5.43346787,1840.8,1840.7,6.519261]
[1743262761547,3.14285349,1840.8,1840.7,6.519261]
[1743262762835,0.14285349,1840.8,1840.7,6.519261]
[1743262763035,0.14285349,1840.8,1840.7,8.146261]
[1743262763239,2.29061438,1841.0,1840.9,5.43212]
[1743262765862,2.29061438,1841.0,1840.8,5.43231]
[1743262766031,4.44241438,1841.0,1840.8,5.43231]
[1743262766236,5.84061438,1841.0,1840.9,5.43212]
[1743262767368,5.29061438,1841.0,1840.9,6.681263]
[1743262770471,2.29061438,1841.0,1840.9,6.681263]
[1743262771369,2.29061438,1841.0,1840.9,5.43212]
[1743262771979,3.0,1841.1,1841.0,5.43183]
[1743262772643,3.12734418,1841.1,1841.0,5.43183]
[1743262773836,0.12734418,1841.1,1841.0,5.43183]
[1743262774079,2.29061438,1841.4,1841.3,5.43094]
[1743262774258,2.42047294,1841.4,1841.3,5.43094]
[1743262774853,2.42047294,1841.4,1841.3,6.517147]
[1743262775282,2.42047294,1841.4,1841.3,5.43094]
[1743262775775,2.97047294,1841.4,1841.3,5.43094]
[1743262775983,3.28743,1841.3,1841.2,5.43113]
[1743262776144,0.55,1841.3,1841.2,5.43113]
[1743262776345,0.6797452,1841.3,1841.2,5.43113]
[1743262777283,3.6797452,1841.3,1841.2,5.43113]
[1743262777493,0.6797452,1841.3,1841.2,5.43113]
[1743262779933,1.09028277,1841.3,1841.2,5.43113]
[1743262781814,1.09028277,1841.3,1841.1,5.43145]
[1743262782017,4.41551438,1841.2,1841.1,5.43145]
[1743262782195,9.20166038,1841.2,1841.1,5.43145]
[1743262782396,7.90392043,1841.2,1841.1,5.43145]
[1743262782592,7.12733743,1841.2,1841.1,5.43145]
[1743262784918,2.71182305,1841.2,1841.1,5.43145]
[1743262785122,0.12959005,1841.2,1841.1,7.494495]
[1743262785491,0.12959005,1841.2,1841.1,6.95135]
[1743262798461,5e-08,1841.2,1841.1,6.95135]
[1743262798675,1.89e-06,1841.2,1841.1,6.95135]
[1743262798865,5.70147595,1841.8,1841.7,5.42976]
[1743262799033,5.29061438,1841.8,1841.7,5.42976]
[1743262799634,0.40889783,1841.8,1841.7,5.42976]
[1743262799834,2.29061438,1841.8,1841.7,5.42976]
[1743262800046,2.29061438,1841.8,1841.7,6.674181]
[1743262800246,1.10651273,1841.9,1841.8,5.42947]
[1743262801260,2.29061438,1842.0,1841.9,5.42917]
[1743262801648,2.39258217,1842.0,1841.9,5.42917]
[1743262801966,3.46369956,1842.0,1841.9,5.42917]
[1743262802172,2.39258217,1842.0,1841.9,5.42917]
[1743262803796,0.10196779,1842.0,1841.9,6.515034]
[1743262804068,0.10196779,1842.0,1841.9,8.095234]
[1743262804461,4.04008065,1842.5,1842.4,5.4277]
[1743262804844,3.90797696,1842.5,1842.4,5.4277]
[1743262805073,6.90797696,1842.5,1842.4,5.4277]
[1743262805270,3.90797696,1842.5,1842.4,5.4277]
[1743262805872,3.36287696,1842.5,1842.4,5.4277]
[1743262806079,2.39366825,1842.5,1842.4,5.4277]
[1743262806287,2.94366825,1842.5,1842.4,5.4277]
[1743262806771,0.65305387,1842.5,1842.4,5.4277]
[1743262806969,0.10305387,1842.5,1842.4,6.513259]
[1743262810559,0.10305387,1842.5,1842.4,8.093459]
[1743262810968,5.29061438,1842.8,1842.7,5.42681]
[1743262814465,2.29061438,1842.8,1842.7,5.42681]
[1743262814667,9.06,1842.9,1842.8,5.42652]
[1743262814866,3.0,1842.9,1842.8,6.669873]
[1743262815615,2.29061438,1843.0,1842.9,5.42623]
[1743262815819,11.2761,1843.2,1843.1,5.42564]
[1743262815991,13.98127944,1843.2,1843.1,5.42564]
[1743262816783,13.98127944,1843.2,1842.9,5.42622]
[1743262817085,2.29061438,1843.0,1842.9,5.42622]
[1743262817510,2.40333095,1843.0,1842.9,5.42622]
[1743262818399,2.40333095,1843.0,1842.9,6.511494]
[1743262820885,4.56873095,1843.0,1842.8,5.42652]
[1743262821100,4.56873095,1843.0,1842.9,5.42623]
[1743262821294,0.55,1842.9,1842.6,5.42693]
[1743262821513,5.84061438,1842.7,1842.6,5.42693]
[1743262821720,2.95386081,1842.7,1842.5,5.42739]
[1743262822021,2.95386081,1842.7,1842.5,10.85461]
[1743262822227,2.95386081,1842.7,1842.6,5.42711]
[1743262823283,2.95386081,1842.7,1842.5,5.42722]
[1743262823720,2.95386081,1842.7,1842.5,5.4272]
[1743262823921,2.95386081,1842.7,1842.6,5.42711]
[1743262824225,5.95386081,1842.7,1842.6,5.42711]
[1743262824825,5.40386081,1842.7,1842.6,5.42711]
[1743262825039,3.0,1842.6,1842.4,5.4275]
[1743262825238,3.0,1842.6,1842.4,10.85506]
[1743262825239,1.6154,1842.5,1842.4,10.85506]
[1743262825447,1.72835547,1842.5,1842.4,5.4275]
[1743262826035,7.56896985,1842.5,1842.4,5.4275]
[1743262826232,3.0,1842.4,1842.3,5.42795]
[1743262826448,4.56896985,1842.5,1842.3,5.42795]
[1743262826613,0.11280997,1842.4,1842.3,5.42795]
[1743262827654,0.11280997,1842.4,1842.3,6.513571]
[1743262827949,5.29061438,1842.6,1842.5,5.4274]
[1743262828124,2.29061438,1842.6,1842.5,5.4274]
[1743262829939,2.84061438,1842.6,1842.5,5.4274]
[1743262831360,10.16420701,1842.8,1842.5,5.4274]
[1743262831361,3.39482139,1842.8,1842.7,5.42681]
[1743262831560,2.29061438,1842.9,1842.8,5.42652]
[1743262832227,2.29061438,1842.9,1842.7,5.42681]
[1743262832655,0.3924831,1842.8,1842.7,5.42681]
[1743262833031,2.29061438,1842.9,1842.7,5.42681]
[1743262833232,0.3924831,1842.8,1842.7,5.42681]
[1743262833564,2.84061438,1842.9,1842.8,5.42652]
[1743262834936,3.0,1842.8,1842.7,5.42681]
[1743262837867,5.171711,1842.7,1842.5,5.4274]
[1743262838167,3.0,1842.6,1842.5,5.4274]
[1743262840694,3.0,1842.6,1842.4,10.85521]
[1743262840996,3.0,1842.4,1842.3,5.42792]
[1743262841294,2.29061438,1842.4,1842.3,5.42792]
[1743262841694,0.55,1842.3,1842.1,5.42858]
[1743262841859,0.55,1842.3,1842.1,5.42847]
[1743262841860,6.83951438,1842.2,1842.1,5.42847]
[1743262842062,7.38951438,1842.2,1842.1,5.42847]
[1743262842898,5.84061438,1842.2,1842.1,5.42847]
[1743262843196,11.1589,1842.4,1842.3,5.42799]
[1743262844099,3.0,1842.3,1842.2,10.85652]
[1743262844301,5.29061438,1842.3,1842.2,10.85652]
[1743262844899,5.29061438,1842.3,1842.2,5.42826]
[1743262847717,5.67935202,1842.3,1842.2,5.42826]
[1743262849889,6.22935202,1842.3,1842.2,5.42826]
[1743262850094,0.55,1842.2,1842.0,5.42887]
[1743262850302,2.67964096,1842.1,1842.0,5.42887]
[1743262850491,7.20304096,1842.1,1842.0,5.42887]
[1743262852024,7.6109354,1842.1,1842.0,5.42887]
[1743262853910,10.396138,1841.9,1841.5,1.5655]
[1743262854108,0.55,1841.7,1841.6,5.42984]
[1743262854420,0.9370953,1841.7,1841.6,5.42984]
[1743262855143,0.3870953,1841.7,1841.6,6.515859]
[1743262855347,5.67770968,1841.7,1841.6,6.515859]
[1743262855916,5.67770968,1841.7,1841.6,5.42984]
[1743262856450,3.3870953,1841.7,1841.6,5.42984]
[1743262856636,5.67770968,1841.7,1841.6,5.42984]
[1743262861928,3.3870953,1841.7,1841.6,6.99534]
[1743262862123,0.3870953,1841.7,1841.6,6.99534]
[1743262862360,0.35161664,1841.7,1841.6,13.5471984]
[1743262862527,6.06,1842.0,1841.9,5.42917]
[1743262862841,2.69850882,1842.1,1842.0,5.42888]
[1743262863243,5.1079,1842.3,1842.2,5.42829]
[1743262863244,1.1048743,1842.3,1842.2,5.42829]
[1743262863411,3.55,1842.3,1842.2,10.85658]
[1743262863614,5.84061438,1842.3,1842.2,10.85658]
[1743262864743,3.0,1842.3,1842.2,10.85658]
[1743262864949,5.29061438,1842.3,1842.2,10.85658]
[1743262865250,5.29061438,1842.3,1842.2,12.37388]
[1743262865944,5.29061438,1842.3,1842.2,10.85658]
[1743262866249,5.69728416,1842.3,1842.2,10.85658]
[1743262868241,5.29061438,1842.3,1842.2,10.85658]
[1743262868447,5.29061438,1842.3,1842.2,11.942238]
[1743262871254,5.29061438,1842.3,1842.2,10.85658]
[1743262875837,2.6945899,1842.4,1842.3,6.94529]
[1743262876050,5.29061438,1842.4,1842.3,6.94529]
[1743262877664,5.64626836,1842.4,1842.3,6.94529]
[1743262878354,5.64626836,1842.4,1842.3,5.42799]
[1743262878559,6.06450657,1842.4,1842.3,5.42799]
[1743262880161,3.06450657,1842.4,1842.3,5.42799]
[1743262884571,3.06450657,1842.4,1842.3,6.674908]
[1743262885764,2.64626836,1842.4,1842.3,6.674908]
[1743262886633,2.64626836,1842.4,1842.3,5.42799]
[1743262887931,0.55,1842.2,1841.8,1.6129]
[1743262888131,2.84061438,1841.9,1841.8,5.42926]
[1743262888362,5.84061438,1841.9,1841.7,5.42973]
[1743262888547,3.19040833,1841.9,1841.7,5.42973]
[1743262888746,0.55,1841.8,1841.6,5.43]
[1743262888932,2.29061438,1841.7,1841.6,5.43]
[1743262889130,3.34970741,1841.7,1841.6,5.43]
[1743262889335,3.34970741,1841.7,1841.6,6.516035]
[1743262892941,3.89970741,1841.7,1841.4,5.43059]
[1743262893146,2.29061438,1841.5,1841.4,5.43059]
[1743262893374,3.0,1841.4,1841.3,5.43084]
[1743262893874,3.3473993,1841.4,1841.3,5.43084]
[1743262895480,3.3473993,1841.4,1841.3,6.517047]
[1743262895875,3.3473993,1841.4,1841.3,8.068647]
[1743262896076,0.3473993,1841.4,1841.3,8.068647]
[1743262896679,9.3e-06,1841.4,1841.3,8.068647]
[1743262896880,7.61e-06,1841.4,1841.3,8.068647]
[1743262897085,8.00580749,1842.2,1842.1,5.42858]
[1743262897253,8.00580749,1842.2,1842.1,6.98018]
[1743262897454,6.7868572,1842.2,1842.1,6.98018]
[1743262897785,2.58008314,1842.2,1842.1,6.98018]
[1743262898367,2.58008314,1842.2,1842.1,5.42858]
[1743262899986,0.28946876,1842.2,1842.1,6.514315]
[1743262901787,2.58008314,1842.2,1842.1,6.514315]
[1743262903366,2.58008314,1842.2,1842.1,5.42858]
[1743262903911,7.50343,1842.1,1842.0,5.42888]
[1743262904095,3.0,1842.1,1842.0,5.42888]
[1743262904397,3.29038392,1842.1,1842.0,5.42888]
[1743262915423,5.45588392,1842.1,1842.0,5.42888]
[1743262915591,8.42888,1842.0,1841.9,5.42917]
[1743262915784,5.84061438,1842.0,1841.9,5.42917]
[1743262915986,6.10887205,1842.0,1841.9,5.42917]
[1743262917799,0.55,1841.9,1841.8,5.4294]
[1743262918030,5.1655,1841.9,1841.8,5.4294]
[1743262918232,5.43368535,1841.9,1841.8,5.4294]
[1743262919315,4.88368535,1841.9,1841.8,5.4294]
[1743262920637,5.28620223,1841.9,1841.8,5.4294]
[1743262920864,0.26818535,1841.9,1841.8,6.515314]
[1743262921333,5.29061438,1842.2,1842.1,5.42858]
[1743262922725,5.55680537,1842.2,1842.1,5.42858]
[1743262924493,5.55680537,1842.2,1842.1,6.98438]
[1743262924494,3.26619099,1842.2,1842.1,6.98438]
[1743262925238,0.26619099,1842.2,1842.1,6.98438]
[1743262925412,0.26619099,1842.2,1842.1,8.27997479]
[1743262925613,3.26619099,1842.2,1842.1,8.27997479]
[1743262925818,3.26619099,1842.2,1842.1,8.225695]
[1743262926131,0.26619099,1842.2,1842.1,8.225695]
[1743262927021,3.0,1842.4,1842.3,5.42799]
[1743262931252,8.405736,1842.3,1842.2,5.42818]
[1743262931415,6.94471438,1842.3,1842.2,5.42818]
[1743262932038,0.55,1842.2,1842.1,5.42857]
[1743262932243,0.55,1842.2,1842.0,5.42887]
[1743262932443,6.824732,1842.0,1841.7,5.4297]
[1743262932650,3.0,1841.8,1841.7,5.4297]
[1743262937111,3.40574305,1841.8,1841.4,5.4304]
[1743262937311,2.29061438,1841.5,1841.4,5.4304]
[1743262937527,2.29061438,1841.7,1841.6,5.43006]
[1743262938242,0.55,1842.1,1842.0,5.42888]
[1743262938243,2.69999108,1842.1,1842.0,5.42888]
[1743262938837,5.69999108,1842.1,1842.0,5.42888]
[1743262942449,3.0,1842.1,1842.0,5.42888]
[1743262942651,1.5245,1842.5,1842.4,5.42767]
[1743262942857,3.81511438,1842.5,1842.4,5.42767]
[1743262943151,6.81511438,1842.5,1842.4,5.42767]
[1743262943726,5.29061438,1842.5,1842.4,5.42767]
[1743262944448,5.69141202,1842.5,1842.4,5.42767]
[1743262944653,5.69141202,1842.5,1842.4,6.513226]
[1743262944821,5.29061438,1842.5,1842.4,6.513226]
[1743262945018,2.29061438,1842.7,1842.6,5.42711]
[1743262945639,5.29061438,1842.7,1842.6,5.42711]
[1743262952666,5.53877496,1842.7,1842.6,5.42711]
[1743262952883,0.24816058,1842.7,1842.6,6.675201]
[1743262956080,3.24816058,1842.7,1842.6,6.675201]
[1743262956576,0.24816058,1842.7,1842.6,8.238301]
[1743262957083,2.29061438,1843.0,1842.9,5.42623]
[1743262957441,2.29061438,1843.0,1842.9,6.98933]
[1743262957664,5.29061438,1843.0,1842.9,8.230904]
[1743262958094,2.29061438,1843.0,1842.9,8.230904]
[1743262958288,3.0,1843.1,1843.0,5.42593]
[1743262959001,6.40315838,1843.3,1843.2,5.42534]
[1743262960672,5.29061438,1843.3,1843.2,5.42534]
[1743262960872,5.29061438,1843.3,1843.2,6.510427]
[1743262961312,7.6781396,1843.6,1843.5,5.42446]
[1743262961313,7.6513,1843.6,1843.5,5.42446]
[1743262961497,10.48701438,1843.6,1843.3,5.42505]
[1743262961695,2.29061438,1843.4,1843.3,5.42505]
[1743262961873,2.29061438,1843.4,1843.2,5.42528]
[1743262963102,1.6452,1843.2,1843.1,5.42549]
[1743262963274,6.93581438,1843.2,1843.1,5.42549]
[1743262965516,3.0,1843.1,1843.0,5.42592]
[1743262965719,3.93581438,1843.2,1843.0,5.42571]
[1743262965881,3.93581438,1843.2,1843.1,5.42564]
[1743262966397,3.93581438,1843.2,1843.0,5.42571]
[1743262967083,3.93581438,1843.2,1843.0,10.85145]
[1743262967424,3.93581438,1843.2,1843.1,5.42564]
[1743262967785,7.16800913,1843.2,1843.1,5.42564]
[1743262968925,3.0,1843.1,1843.0,5.42571]
[1743262969111,4.16800913,1843.2,1843.0,5.42571]
[1743262969289,0.23206449,1843.1,1843.0,5.42571]
[1743262969491,3.93581438,1843.2,1843.1,5.42564]
[1743262969823,4.16800913,1843.2,1843.1,5.42564]
[1743262970279,4.16800913,1843.2,1843.0,5.42571]
[1743262970686,4.16800913,1843.2,1842.6,5.42699]
[1743262970687,11.94703,1842.9,1842.6,5.42699]
[1743262970887,2.29061438,1842.7,1842.5,10.85468]
[1743262971119,2.29061438,1842.7,1842.6,5.42711]
[1743262972822,5.69596903,1842.7,1842.6,5.42711]
[1743262973028,5.69596903,1842.7,1842.5,5.42729]
[1743262973210,4.23096903,1842.7,1842.5,5.42729]
[1743262973787,7.23096903,1842.7,1842.5,5.42729]
[1743262973987,3.0,1842.6,1842.5,5.42729]
[1743262974387,4.78096903,1842.7,1842.6,5.42711]
[1743262974620,6.24596903,1842.7,1842.6,5.42711]
[1743262974887,5.69596903,1842.7,1842.6,5.42711]
[1743262976516,5.69596903,1842.7,1842.6,6.51255]
[1743262976722,5.69596903,1842.7,1842.6,5.42711]
[1743262981523,5.69596903,1842.7,1842.6,6.96641]
[1743262981821,3.40535465,1842.7,1842.6,6.96641]
[1743262982596,3.63216679,1842.7,1842.6,6.96641]
[1743262983626,3.63216679,1842.7,1842.6,5.42711]
[1743262987545,3.63216679,1842.7,1842.6,6.51255]
[1743262989821,0.22681214,1842.7,1842.6,8.20031677]
[1743262990021,0.22681214,1842.7,1842.6,8.14605]
[1743262990223,2.29061438,1843.0,1842.9,7.05973]
[1743262992529,2.29061438,1843.0,1842.9,5.42623]
[1743262993463,2.69226963,1843.0,1842.9,5.42623]
[1743262993760,17.91289,1842.7,1842.0,1.6335]
[1743262993925,1.5474,1842.7,1842.5,5.42736]
[1743262994263,2.29061438,1842.6,1842.5,5.42736]
[1743262997568,2.51842585,1842.6,1842.5,5.42736]
[1743263001372,3.0,1842.5,1842.3,5.42788]
[1743263001589,2.29061438,1842.4,1842.3,5.42788]
[1743263001747,2.51825224,1842.4,1842.3,5.42788]
[1743263002072,5.51825224,1842.4,1842.3,5.42788]
[1743263002270,5.51825224,1842.4,1842.3,6.513497]
[1743263002469,5.51825224,1842.4,1842.3,8.052397]
[1743263003768,5.51825224,1842.4,1842.3,5.42788]
[1743263004292,5.93661958,1842.4,1842.3,5.42788]
[1743263008977,5.51825224,1842.4,1842.3,5.42788]
[1743263009179,0.22763786,1842.4,1842.3,7.02105525]
[1743263009384,2.29061438,1842.6,1842.5,5.4274]
[1743263009564,2.2058,1842.9,1842.7,10.85306]
[1743263009766,2.29061438,1842.8,1842.7,10.85306]
[1743263009962,5.29061438,1842.8,1842.7,10.85306]
[1743263010188,2.29061438,1842.8,1842.7,5.42652]
[1743263011671,2.69238041,1842.8,1842.7,5.42652]
[1743263012693,2.91933295,1842.8,1842.7,5.42652]
[1743263013396,2.91933295,1842.8,1842.6,5.42702]
[1743263013589,2.91933295,1842.8,1842.6,10.854]
[1743263013786,0.55,1842.7,1842.4,5.42741]
[1743263014003,5.29061438,1842.5,1842.4,5.42741]
[1743263014303,5.51717587,1842.5,1842.3,10.85596]
[1743263014478,5.51717587,1842.5,1842.4,5.4277]
[1743263014880,5.51717587,1842.5,1842.3,10.85571]
[1743263015508,5.51717587,1842.5,1842.3,5.42773]
[1743263018202,5.51717587,1842.5,1842.3,10.85552]
[1743263018506,5.51717587,1842.5,1842.3,10.85556]
[1743263019411,5.51717587,1842.5,1842.3,5.42773]
[1743263019905,5.51717587,1842.5,1842.3,10.85551]
[1743263020206,5.51717587,1842.5,1842.4,5.4277]
[1743263020401,5.51717587,1842.5,1842.4,5.3277]
[1743263020608,5.51717587,1842.5,1842.3,5.42799]
[1743263020906,5.51717587,1842.5,1842.3,10.85574]
[1743263021102,5.51717587,1842.5,1842.4,5.4277]
[1743263021402,5.51717587,1842.5,1842.4,7.0075]
[1743263022606,0.22656149,1842.5,1842.4,8.08562143]
[1743263022778,0.22656149,1842.5,1842.4,8.03134701]
[1743263023106,5.51717587,1842.5,1842.4,8.03134701]
[1743263023709,5.51717587,1842.5,1842.4,7.0075]
[1743263023889,5.51717587,1842.5,1842.4,5.4277]
[1743263025412,5.51717587,1842.5,1842.3,5.42775]
[1743263025585,5.51717587,1842.5,1842.4,5.4277]
[1743263026113,3.0,1842.2,1841.9,5.42901]
[1743263026312,3.0,1841.9,1841.5,5.43014]
[1743263026512,2.29061438,1841.5,1841.1,1.5798]
[1743263026711,2.29061438,1841.3,1841.2,5.43109]
[1743263027100,2.49455779,1841.3,1841.2,5.43109]
[1743263027500,2.49455779,1841.3,1840.6,1.5798]
[1743263027702,4.6036,1841.2,1840.9,5.43204]
[1743263027918,2.29061438,1841.0,1840.9,5.43204]
[1743263028092,2.69988263,1841.0,1840.9,5.43204]
[1743263028423,3.0,1840.9,1840.8,5.43216]
[1743263028621,0.20078028,1840.9,1840.8,5.43216]
[1743263031392,2.207916,1840.8,1840.7,5.43259]
[1743263031591,2.49104531,1840.8,1840.7,5.43259]
[1743263032620,5.49104531,1840.8,1840.6,5.43295]
[1743263032802,2.29061438,1840.7,1840.6,5.43295]
[1743263033120,2.48192669,1840.7,1840.6,5.43295]
[1743263034595,2.48192669,1840.7,1840.6,5.43301]
[1743263036244,2.48192669,1840.7,1840.6,6.519623]
[1743263036740,0.19131231,1840.7,1840.6,6.519623]
[1743263036947,0.19131231,1840.7,1840.6,8.139123]
[1743263037738,0.19131231,1840.7,1840.6,7.05251]
[1743263038917,0.19131231,1840.7,1840.6,5.43301]
[1743263039827,0.19131231,1840.7,1840.1,1.6195]
[1743263039828,1.614,1840.6,1840.1,1.6195]
[1743263040148,0.19026616,1840.5,1840.3,5.4338]
[1743263041326,2.29061438,1840.4,1840.3,5.4338]
[1743263041528,5.46543817,1840.4,1840.3,5.4338]
[1743263041730,2.46543817,1840.4,1840.1,7.05398]
[1743263042078,2.29061438,1840.2,1840.1,5.43448]